{"text_format":"3","workbook":"xlsx","n_sheets":4,"sheets":["Budjetin yleiskatsaus","Budjetin yhteenveto","Kuukausittaiset menot","Lisätiedot"],"not_rendered":{"charts":1,"images":4,"defined_names":7,"pivot_tables":2},"read":"whole","date_system":"1900"}

{"sheet":"Budjetin yleiskatsaus","index":0,"n_rows":12,"n_cols":8,"rows_kept":12,"merged":[[1,1,1,2],[2,1,2,2],[3,1,3,2],[4,1,4,2]]}
[{"$nulls":7}," "]
[null,"Saldo"]
[null,"Arvioitu saldo",null,{"$f":"Arvioidut_tulot-Arvioidut_menot","v":{"v":1585,"d":"1,585 €"}},null,"Arvioidut vähennettyinä kuluilla"]
[null,"Todellinen saldo ",null,{"$f":"TOTEUTUNEET_MENOT-Toteutuneet_menot1","v":{"v":1740,"d":"1,740 €"}},null,"Todelliset vähennettyinä kuluilla"]
[null,"Erotus",null,{"$f":"D4-D3","v":{"v":155,"d":"155 €"}},null,"Todelliset vähennettyinä arvioiduilla tuloilla"]
[null,"Tulot",{"$nulls":3},"Kulut"]
[null,null,"Arvioidut","Todellinen",null,"Arvioidut","Todellinen"]
[null,"Tulot 1",{"v":6000,"d":"6,000 €"},{"v":5800,"d":"5,800 €"},null,{"$f":"SUM(Kuukausimenot_taulukko[Arvioidut kustannukset])","v":{"v":7915,"d":"7,915 €"}},{"$f":"SUM(Kuukausimenot_taulukko[Todelliset kustannukset])","v":{"v":7860,"d":"7,860 €"}}]
[null,"Tulot 2",{"v":1000,"d":"1,000 €"},{"v":2300,"d":"2,300 €"}]
[null,"Lisätulot",{"v":2500,"d":"2,500 €"},{"v":1500,"d":"1,500 €"}]
[null,"Tulot yhteensä",{"$f":"SUM(C8:C10)","v":{"v":9500,"d":"9,500 €"}},{"$f":"SUM(D8:D10)","v":{"v":9600,"d":"9,600 €"}}]
[null,"Todellisten kulujen erittely"]

{"sheet":"Budjetin yhteenveto","index":1,"n_rows":41,"n_cols":7,"rows_kept":41}
[null,"Budjetin yhteenveto",{"$nulls":4}," "]
[]
[null,"Luokka","Arvioidut kustannukset ","Todelliset kustannukset ","Erotus "]
[null,"Lapset",{"v":140,"d":"140 €"},{"v":140,"d":"140 €"},{"v":0,"d":"0 €"}]
[null,"Vapaa-ajan toiminta",{"v":40,"d":"40 €"},{"v":40,"d":"40 €"},{"v":0,"d":"0 €"}]
[null,"Terveydenhoito",null,null,{"v":0,"d":"0 €"}]
[null,"Koulutarvikkeet",null,null,{"v":0,"d":"0 €"}]
[null,"Lukukausimaksut",{"v":100,"d":"100 €"},{"v":100,"d":"100 €"},{"v":0,"d":"0 €"}]
[]
[null,"Viihde",{"v":400,"d":"400 €"},{"v":358,"d":"358 €"},{"v":42,"d":"42 €"}]
[null,"Konsertit",{"v":50,"d":"50 €"},{"v":40,"d":"40 €"},{"v":10,"d":"10 €"}]
[null,"Teatteri",{"v":200,"d":"200 €"},{"v":150,"d":"150 €"},{"v":50,"d":"50 €"}]
[null,"Elokuvat",{"v":50,"d":"50 €"},{"v":28,"d":"28 €"},{"v":22,"d":"22 €"}]
[null,"Musiikki (CD-levyt, lataukset jne.)",{"v":50,"d":"50 €"},{"v":30,"d":"30 €"},{"v":20,"d":"20 €"}]
[null,"Urheilutapahtumat",{"v":0,"d":"0 €"},{"v":40,"d":"40 €"},{"v":-40,"d":"-40 €"}]
[null,"Video/DVD (osto)",{"v":20,"d":"20 €"},{"v":50,"d":"50 €"},{"v":-30,"d":"-30 €"}]
[null,"Video/DVD (vuokraus)",{"v":30,"d":"30 €"},{"v":20,"d":"20 €"},{"v":10,"d":"10 €"}]
[]
[null,"Ruokakulut",{"v":1100,"d":"1,100 €"},{"v":1320,"d":"1,320 €"},{"v":-220,"d":"-220 €"}]
[]
[null,"Lahjat ja lahjoitukset",{"v":100,"d":"100 €"},{"v":125,"d":"125 €"},{"v":-25,"d":"-25 €"}]
[]
[null,"Asuminen",{"v":2830,"d":"2,830 €"},{"v":2702,"d":"2,702 €"},{"v":-72,"d":"-72 €"}]
[]
[null,"Vakuutukset",{"v":900,"d":"900 €"},{"v":900,"d":"900 €"},{"v":0,"d":"0 €"}]
[]
[null,"Lainat",{"v":200,"d":"200 €"},{"v":200,"d":"200 €"},{"v":0,"d":"0 €"}]
[]
[null,"Hyvinvointi",{"v":150,"d":"150 €"},{"v":140,"d":"140 €"},{"v":10,"d":"10 €"}]
[]
[null,"Lemmikkieläimet",{"v":170,"d":"170 €"},{"v":100,"d":"100 €"},{"v":70,"d":"70 €"}]
[]
[null,"Verot",{"v":300,"d":"300 €"},{"v":300,"d":"300 €"},{"v":0,"d":"0 €"}]
[]
[null,"Liikenne",{"v":1425,"d":"1,425 €"},{"v":1375,"d":"1,375 €"},{"v":50,"d":"50 €"}]
[]
[null,"Säästöt",{"v":200,"d":"200 €"},{"v":200,"d":"200 €"},{"v":0,"d":"0 €"}]
[null,"Sijoitustili",{"v":200,"d":"200 €"},{"v":200,"d":"200 €"},{"v":0,"d":"0 €"}]
[null,"Eläketili",null,null,{"v":0,"d":"0 €"}]
[]
[null,"Kaikki yhteensä",{"v":7915,"d":"7,915 €"},{"v":7860,"d":"7,860 €"},{"v":-145,"d":"-145 €"}]

{"sheet":"Kuukausittaiset menot","index":2,"n_rows":61,"n_cols":8,"rows_kept":61}
[{"$nulls":7}," "]
[null,"Kuvaus","Luokka","Arvioidut kustannukset","Todelliset kustannukset","Erotus","Todellisten kustannusten yleiskatsaus"]
[null,"Vapaa-ajan toiminta","Lapset",{"v":40,"d":"40 €"},{"v":40,"d":"40 €"},{"$f":"IF(OR(Kuukausimenot_taulukko[[#This Row],[Arvioidut kustannukset]]=\"\",Kuukausimenot_taulukko[[#This Row],[Todelliset kustannukset]]=\"\"),\"\",Kuukausimenot_taulukko[[#This Row],[Arvioidut kustannukset]]-Kuukausimenot_taulukko[[#This Row],[Todelliset kustannukset]])","v":{"v":0,"d":"0 €"}},{"$f":"Kuukausimenot_taulukko[[#This Row],[Todelliset kustannukset]]","v":40}]
[null,"Terveydenhoito","Lapset",null,null,{"$f":"IF(OR(Kuukausimenot_taulukko[[#This Row],[Arvioidut kustannukset]]=\"\",Kuukausimenot_taulukko[[#This Row],[Todelliset kustannukset]]=\"\"),\"\",Kuukausimenot_taulukko[[#This Row],[Arvioidut kustannukset]]-Kuukausimenot_taulukko[[#This Row],[Todelliset kustannukset]])","v":""},{"$f":"Kuukausimenot_taulukko[[#This Row],[Todelliset kustannukset]]","v":0}]
[null,"Koulutarvikkeet","Lapset",null,null,{"$f":"IF(OR(Kuukausimenot_taulukko[[#This Row],[Arvioidut kustannukset]]=\"\",Kuukausimenot_taulukko[[#This Row],[Todelliset kustannukset]]=\"\"),\"\",Kuukausimenot_taulukko[[#This Row],[Arvioidut kustannukset]]-Kuukausimenot_taulukko[[#This Row],[Todelliset kustannukset]])","v":""},{"$f":"Kuukausimenot_taulukko[[#This Row],[Todelliset kustannukset]]","v":0}]
[null,"Lukukausimaksut","Lapset",{"v":100,"d":"100 €"},{"v":100,"d":"100 €"},{"$f":"IF(OR(Kuukausimenot_taulukko[[#This Row],[Arvioidut kustannukset]]=\"\",Kuukausimenot_taulukko[[#This Row],[Todelliset kustannukset]]=\"\"),\"\",Kuukausimenot_taulukko[[#This Row],[Arvioidut kustannukset]]-Kuukausimenot_taulukko[[#This Row],[Todelliset kustannukset]])","v":{"v":0,"d":"0 €"}},{"$f":"Kuukausimenot_taulukko[[#This Row],[Todelliset kustannukset]]","v":100}]
[null,"Konsertit","Viihde",{"v":50,"d":"50 €"},{"v":40,"d":"40 €"},{"$f":"IF(OR(Kuukausimenot_taulukko[[#This Row],[Arvioidut kustannukset]]=\"\",Kuukausimenot_taulukko[[#This Row],[Todelliset kustannukset]]=\"\"),\"\",Kuukausimenot_taulukko[[#This Row],[Arvioidut kustannukset]]-Kuukausimenot_taulukko[[#This Row],[Todelliset kustannukset]])","v":{"v":10,"d":"10 €"}},{"$f":"Kuukausimenot_taulukko[[#This Row],[Todelliset kustannukset]]","v":40}]
[null,"Teatteri","Viihde",{"v":200,"d":"200 €"},{"v":150,"d":"150 €"},{"$f":"IF(OR(Kuukausimenot_taulukko[[#This Row],[Arvioidut kustannukset]]=\"\",Kuukausimenot_taulukko[[#This Row],[Todelliset kustannukset]]=\"\"),\"\",Kuukausimenot_taulukko[[#This Row],[Arvioidut kustannukset]]-Kuukausimenot_taulukko[[#This Row],[Todelliset kustannukset]])","v":{"v":50,"d":"50 €"}},{"$f":"Kuukausimenot_taulukko[[#This Row],[Todelliset kustannukset]]","v":150}]
[null,"Elokuvat","Viihde",{"v":50,"d":"50 €"},{"v":28,"d":"28 €"},{"$f":"IF(OR(Kuukausimenot_taulukko[[#This Row],[Arvioidut kustannukset]]=\"\",Kuukausimenot_taulukko[[#This Row],[Todelliset kustannukset]]=\"\"),\"\",Kuukausimenot_taulukko[[#This Row],[Arvioidut kustannukset]]-Kuukausimenot_taulukko[[#This Row],[Todelliset kustannukset]])","v":{"v":22,"d":"22 €"}},{"$f":"Kuukausimenot_taulukko[[#This Row],[Todelliset kustannukset]]","v":28}]
[null,"Musiikki (CD-levyt, lataukset jne.)","Viihde",{"v":50,"d":"50 €"},{"v":30,"d":"30 €"},{"$f":"IF(OR(Kuukausimenot_taulukko[[#This Row],[Arvioidut kustannukset]]=\"\",Kuukausimenot_taulukko[[#This Row],[Todelliset kustannukset]]=\"\"),\"\",Kuukausimenot_taulukko[[#This Row],[Arvioidut kustannukset]]-Kuukausimenot_taulukko[[#This Row],[Todelliset kustannukset]])","v":{"v":20,"d":"20 €"}},{"$f":"Kuukausimenot_taulukko[[#This Row],[Todelliset kustannukset]]","v":30}]
[null,"Urheilutapahtumat","Viihde",{"v":0,"d":"0 €"},{"v":40,"d":"40 €"},{"$f":"IF(OR(Kuukausimenot_taulukko[[#This Row],[Arvioidut kustannukset]]=\"\",Kuukausimenot_taulukko[[#This Row],[Todelliset kustannukset]]=\"\"),\"\",Kuukausimenot_taulukko[[#This Row],[Arvioidut kustannukset]]-Kuukausimenot_taulukko[[#This Row],[Todelliset kustannukset]])","v":{"v":-40,"d":"-40 €"}},{"$f":"Kuukausimenot_taulukko[[#This Row],[Todelliset kustannukset]]","v":40}]
[null,"Video/DVD (osto)","Viihde",{"v":20,"d":"20 €"},{"v":50,"d":"50 €"},{"$f":"IF(OR(Kuukausimenot_taulukko[[#This Row],[Arvioidut kustannukset]]=\"\",Kuukausimenot_taulukko[[#This Row],[Todelliset kustannukset]]=\"\"),\"\",Kuukausimenot_taulukko[[#This Row],[Arvioidut kustannukset]]-Kuukausimenot_taulukko[[#This Row],[Todelliset kustannukset]])","v":{"v":-30,"d":"-30 €"}},{"$f":"Kuukausimenot_taulukko[[#This Row],[Todelliset kustannukset]]","v":50}]
[null,"Video/DVD (vuokraus)","Viihde",{"v":30,"d":"30 €"},{"v":20,"d":"20 €"},{"$f":"IF(OR(Kuukausimenot_taulukko[[#This Row],[Arvioidut kustannukset]]=\"\",Kuukausimenot_taulukko[[#This Row],[Todelliset kustannukset]]=\"\"),\"\",Kuukausimenot_taulukko[[#This Row],[Arvioidut kustannukset]]-Kuukausimenot_taulukko[[#This Row],[Todelliset kustannukset]])","v":{"v":10,"d":"10 €"}},{"$f":"Kuukausimenot_taulukko[[#This Row],[Todelliset kustannukset]]","v":20}]
[null,"Ruokailu ulkona","Ruokakulut",{"v":1000,"d":"1,000 €"},{"v":1200,"d":"1,200 €"},{"$f":"IF(OR(Kuukausimenot_taulukko[[#This Row],[Arvioidut kustannukset]]=\"\",Kuukausimenot_taulukko[[#This Row],[Todelliset kustannukset]]=\"\"),\"\",Kuukausimenot_taulukko[[#This Row],[Arvioidut kustannukset]]-Kuukausimenot_taulukko[[#This Row],[Todelliset kustannukset]])","v":{"v":-200,"d":"-200 €"}},{"$f":"Kuukausimenot_taulukko[[#This Row],[Todelliset kustannukset]]","v":1200}]
[null,"Ruokatarvikkeet","Ruokakulut",{"v":100,"d":"100 €"},{"v":120,"d":"120 €"},{"$f":"IF(OR(Kuukausimenot_taulukko[[#This Row],[Arvioidut kustannukset]]=\"\",Kuukausimenot_taulukko[[#This Row],[Todelliset kustannukset]]=\"\"),\"\",Kuukausimenot_taulukko[[#This Row],[Arvioidut kustannukset]]-Kuukausimenot_taulukko[[#This Row],[Todelliset kustannukset]])","v":{"v":-20,"d":"-20 €"}},{"$f":"Kuukausimenot_taulukko[[#This Row],[Todelliset kustannukset]]","v":120}]
[null,"Lahjoitukset 1","Lahjat ja lahjoitukset",{"v":75,"d":"75 €"},{"v":100,"d":"100 €"},{"$f":"IF(OR(Kuukausimenot_taulukko[[#This Row],[Arvioidut kustannukset]]=\"\",Kuukausimenot_taulukko[[#This Row],[Todelliset kustannukset]]=\"\"),\"\",Kuukausimenot_taulukko[[#This Row],[Arvioidut kustannukset]]-Kuukausimenot_taulukko[[#This Row],[Todelliset kustannukset]])","v":{"v":-25,"d":"-25 €"}},{"$f":"Kuukausimenot_taulukko[[#This Row],[Todelliset kustannukset]]","v":100}]
[null,"Lahjoitukset 2","Lahjat ja lahjoitukset",{"v":25,"d":"25 €"},{"v":25,"d":"25 €"},{"$f":"IF(OR(Kuukausimenot_taulukko[[#This Row],[Arvioidut kustannukset]]=\"\",Kuukausimenot_taulukko[[#This Row],[Todelliset kustannukset]]=\"\"),\"\",Kuukausimenot_taulukko[[#This Row],[Arvioidut kustannukset]]-Kuukausimenot_taulukko[[#This Row],[Todelliset kustannukset]])","v":{"v":0,"d":"0 €"}},{"$f":"Kuukausimenot_taulukko[[#This Row],[Todelliset kustannukset]]","v":25}]
[null,"Lahja 1","Lahjat ja lahjoitukset",null,null,{"$f":"IF(OR(Kuukausimenot_taulukko[[#This Row],[Arvioidut kustannukset]]=\"\",Kuukausimenot_taulukko[[#This Row],[Todelliset kustannukset]]=\"\"),\"\",Kuukausimenot_taulukko[[#This Row],[Arvioidut kustannukset]]-Kuukausimenot_taulukko[[#This Row],[Todelliset kustannukset]])","v":""},{"$f":"Kuukausimenot_taulukko[[#This Row],[Todelliset kustannukset]]","v":0}]
[null,"Lahja 2","Lahjat ja lahjoitukset",null,null,{"$f":"IF(OR(Kuukausimenot_taulukko[[#This Row],[Arvioidut kustannukset]]=\"\",Kuukausimenot_taulukko[[#This Row],[Todelliset kustannukset]]=\"\"),\"\",Kuukausimenot_taulukko[[#This Row],[Arvioidut kustannukset]]-Kuukausimenot_taulukko[[#This Row],[Todelliset kustannukset]])","v":""},{"$f":"Kuukausimenot_taulukko[[#This Row],[Todelliset kustannukset]]","v":0}]
[null,"Kaapeli-TV/Satelliitti-TV","Asuminen",{"v":100,"d":"100 €"},{"v":100,"d":"100 €"},{"$f":"IF(OR(Kuukausimenot_taulukko[[#This Row],[Arvioidut kustannukset]]=\"\",Kuukausimenot_taulukko[[#This Row],[Todelliset kustannukset]]=\"\"),\"\",Kuukausimenot_taulukko[[#This Row],[Arvioidut kustannukset]]-Kuukausimenot_taulukko[[#This Row],[Todelliset kustannukset]])","v":{"v":0,"d":"0 €"}},{"$f":"Kuukausimenot_taulukko[[#This Row],[Todelliset kustannukset]]","v":100}]
[null,"Sähkö","Asuminen",{"v":45,"d":"45 €"},{"v":50,"d":"50 €"},{"$f":"IF(OR(Kuukausimenot_taulukko[[#This Row],[Arvioidut kustannukset]]=\"\",Kuukausimenot_taulukko[[#This Row],[Todelliset kustannukset]]=\"\"),\"\",Kuukausimenot_taulukko[[#This Row],[Arvioidut kustannukset]]-Kuukausimenot_taulukko[[#This Row],[Todelliset kustannukset]])","v":{"v":-5,"d":"-5 €"}},{"$f":"Kuukausimenot_taulukko[[#This Row],[Todelliset kustannukset]]","v":50}]
[null,"Kaasu","Asuminen",{"v":300,"d":"300 €"},{"v":400,"d":"400 €"},{"$f":"IF(OR(Kuukausimenot_taulukko[[#This Row],[Arvioidut kustannukset]]=\"\",Kuukausimenot_taulukko[[#This Row],[Todelliset kustannukset]]=\"\"),\"\",Kuukausimenot_taulukko[[#This Row],[Arvioidut kustannukset]]-Kuukausimenot_taulukko[[#This Row],[Todelliset kustannukset]])","v":{"v":-100,"d":"-100 €"}},{"$f":"Kuukausimenot_taulukko[[#This Row],[Todelliset kustannukset]]","v":400}]
[null,"Kodin siivouspalvelu","Asuminen",{"v":200,"d":"200 €"},null,{"$f":"IF(OR(Kuukausimenot_taulukko[[#This Row],[Arvioidut kustannukset]]=\"\",Kuukausimenot_taulukko[[#This Row],[Todelliset kustannukset]]=\"\"),\"\",Kuukausimenot_taulukko[[#This Row],[Arvioidut kustannukset]]-Kuukausimenot_taulukko[[#This Row],[Todelliset kustannukset]])","v":""},{"$f":"Kuukausimenot_taulukko[[#This Row],[Todelliset kustannukset]]","v":0}]
[null,"Ylläpito","Asuminen",{"v":200,"d":"200 €"},{"v":150,"d":"150 €"},{"$f":"IF(OR(Kuukausimenot_taulukko[[#This Row],[Arvioidut kustannukset]]=\"\",Kuukausimenot_taulukko[[#This Row],[Todelliset kustannukset]]=\"\"),\"\",Kuukausimenot_taulukko[[#This Row],[Arvioidut kustannukset]]-Kuukausimenot_taulukko[[#This Row],[Todelliset kustannukset]])","v":{"v":50,"d":"50 €"}},{"$f":"Kuukausimenot_taulukko[[#This Row],[Todelliset kustannukset]]","v":150}]
[null,"Asuntolaina tai vuokra","Asuminen",{"v":1700,"d":"1,700 €"},{"v":1700,"d":"1,700 €"},{"$f":"IF(OR(Kuukausimenot_taulukko[[#This Row],[Arvioidut kustannukset]]=\"\",Kuukausimenot_taulukko[[#This Row],[Todelliset kustannukset]]=\"\"),\"\",Kuukausimenot_taulukko[[#This Row],[Arvioidut kustannukset]]-Kuukausimenot_taulukko[[#This Row],[Todelliset kustannukset]])","v":{"v":0,"d":"0 €"}},{"$f":"Kuukausimenot_taulukko[[#This Row],[Todelliset kustannukset]]","v":1700}]
[null,"Lämmityskulut","Asuminen",null,null,{"$f":"IF(OR(Kuukausimenot_taulukko[[#This Row],[Arvioidut kustannukset]]=\"\",Kuukausimenot_taulukko[[#This Row],[Todelliset kustannukset]]=\"\"),\"\",Kuukausimenot_taulukko[[#This Row],[Arvioidut kustannukset]]-Kuukausimenot_taulukko[[#This Row],[Todelliset kustannukset]])","v":""},{"$f":"Kuukausimenot_taulukko[[#This Row],[Todelliset kustannukset]]","v":0}]
[null,"Internet","Asuminen",{"v":100,"d":"100 €"},{"v":100,"d":"100 €"},{"$f":"IF(OR(Kuukausimenot_taulukko[[#This Row],[Arvioidut kustannukset]]=\"\",Kuukausimenot_taulukko[[#This Row],[Todelliset kustannukset]]=\"\"),\"\",Kuukausimenot_taulukko[[#This Row],[Arvioidut kustannukset]]-Kuukausimenot_taulukko[[#This Row],[Todelliset kustannukset]])","v":{"v":0,"d":"0 €"}},{"$f":"Kuukausimenot_taulukko[[#This Row],[Todelliset kustannukset]]","v":100}]
[null,"Puhelin (matkapuhelin)","Asuminen",{"v":60,"d":"60 €"},{"v":60,"d":"60 €"},{"$f":"IF(OR(Kuukausimenot_taulukko[[#This Row],[Arvioidut kustannukset]]=\"\",Kuukausimenot_taulukko[[#This Row],[Todelliset kustannukset]]=\"\"),\"\",Kuukausimenot_taulukko[[#This Row],[Arvioidut kustannukset]]-Kuukausimenot_taulukko[[#This Row],[Todelliset kustannukset]])","v":{"v":0,"d":"0 €"}},{"$f":"Kuukausimenot_taulukko[[#This Row],[Todelliset kustannukset]]","v":60}]
[null,"Puhelin (koti)","Asuminen",{"v":35,"d":"35 €"},{"v":39,"d":"39 €"},{"$f":"IF(OR(Kuukausimenot_taulukko[[#This Row],[Arvioidut kustannukset]]=\"\",Kuukausimenot_taulukko[[#This Row],[Todelliset kustannukset]]=\"\"),\"\",Kuukausimenot_taulukko[[#This Row],[Arvioidut kustannukset]]-Kuukausimenot_taulukko[[#This Row],[Todelliset kustannukset]])","v":{"v":-4,"d":"-4 €"}},{"$f":"Kuukausimenot_taulukko[[#This Row],[Todelliset kustannukset]]","v":39}]
[null,"Tarvikkeet","Asuminen",{"v":40,"d":"40 €"},{"v":55,"d":"55 €"},{"$f":"IF(OR(Kuukausimenot_taulukko[[#This Row],[Arvioidut kustannukset]]=\"\",Kuukausimenot_taulukko[[#This Row],[Todelliset kustannukset]]=\"\"),\"\",Kuukausimenot_taulukko[[#This Row],[Arvioidut kustannukset]]-Kuukausimenot_taulukko[[#This Row],[Todelliset kustannukset]])","v":{"v":-15,"d":"-15 €"}},{"$f":"Kuukausimenot_taulukko[[#This Row],[Todelliset kustannukset]]","v":55}]
[null,"Jäte- ja kierrätysmaksut","Asuminen",{"v":25,"d":"25 €"},{"v":22,"d":"22 €"},{"$f":"IF(OR(Kuukausimenot_taulukko[[#This Row],[Arvioidut kustannukset]]=\"\",Kuukausimenot_taulukko[[#This Row],[Todelliset kustannukset]]=\"\"),\"\",Kuukausimenot_taulukko[[#This Row],[Arvioidut kustannukset]]-Kuukausimenot_taulukko[[#This Row],[Todelliset kustannukset]])","v":{"v":3,"d":"3 €"}},{"$f":"Kuukausimenot_taulukko[[#This Row],[Todelliset kustannukset]]","v":22}]
[null,"Vesi ja viemäröinti","Asuminen",{"v":25,"d":"25 €"},{"v":26,"d":"26 €"},{"$f":"IF(OR(Kuukausimenot_taulukko[[#This Row],[Arvioidut kustannukset]]=\"\",Kuukausimenot_taulukko[[#This Row],[Todelliset kustannukset]]=\"\"),\"\",Kuukausimenot_taulukko[[#This Row],[Arvioidut kustannukset]]-Kuukausimenot_taulukko[[#This Row],[Todelliset kustannukset]])","v":{"v":-1,"d":"-1 €"}},{"$f":"Kuukausimenot_taulukko[[#This Row],[Todelliset kustannukset]]","v":26}]
[null,"Terveys","Vakuutukset",{"v":400,"d":"400 €"},{"v":400,"d":"400 €"},{"$f":"IF(OR(Kuukausimenot_taulukko[[#This Row],[Arvioidut kustannukset]]=\"\",Kuukausimenot_taulukko[[#This Row],[Todelliset kustannukset]]=\"\"),\"\",Kuukausimenot_taulukko[[#This Row],[Arvioidut kustannukset]]-Kuukausimenot_taulukko[[#This Row],[Todelliset kustannukset]])","v":{"v":0,"d":"0 €"}},{"$f":"Kuukausimenot_taulukko[[#This Row],[Todelliset kustannukset]]","v":400}]
[null,"Koti","Vakuutukset",{"v":400,"d":"400 €"},{"v":400,"d":"400 €"},{"$f":"IF(OR(Kuukausimenot_taulukko[[#This Row],[Arvioidut kustannukset]]=\"\",Kuukausimenot_taulukko[[#This Row],[Todelliset kustannukset]]=\"\"),\"\",Kuukausimenot_taulukko[[#This Row],[Arvioidut kustannukset]]-Kuukausimenot_taulukko[[#This Row],[Todelliset kustannukset]])","v":{"v":0,"d":"0 €"}},{"$f":"Kuukausimenot_taulukko[[#This Row],[Todelliset kustannukset]]","v":400}]
[null,"Elämä","Vakuutukset",{"v":100,"d":"100 €"},{"v":100,"d":"100 €"},{"$f":"IF(OR(Kuukausimenot_taulukko[[#This Row],[Arvioidut kustannukset]]=\"\",Kuukausimenot_taulukko[[#This Row],[Todelliset kustannukset]]=\"\"),\"\",Kuukausimenot_taulukko[[#This Row],[Arvioidut kustannukset]]-Kuukausimenot_taulukko[[#This Row],[Todelliset kustannukset]])","v":{"v":0,"d":"0 €"}},{"$f":"Kuukausimenot_taulukko[[#This Row],[Todelliset kustannukset]]","v":100}]
[null,"Luottokortti 1","Lainat",{"v":200,"d":"200 €"},{"v":200,"d":"200 €"},{"$f":"IF(OR(Kuukausimenot_taulukko[[#This Row],[Arvioidut kustannukset]]=\"\",Kuukausimenot_taulukko[[#This Row],[Todelliset kustannukset]]=\"\"),\"\",Kuukausimenot_taulukko[[#This Row],[Arvioidut kustannukset]]-Kuukausimenot_taulukko[[#This Row],[Todelliset kustannukset]])","v":{"v":0,"d":"0 €"}},{"$f":"Kuukausimenot_taulukko[[#This Row],[Todelliset kustannukset]]","v":200}]
[null,"Luottokortti 2","Lainat",null,null,{"$f":"IF(OR(Kuukausimenot_taulukko[[#This Row],[Arvioidut kustannukset]]=\"\",Kuukausimenot_taulukko[[#This Row],[Todelliset kustannukset]]=\"\"),\"\",Kuukausimenot_taulukko[[#This Row],[Arvioidut kustannukset]]-Kuukausimenot_taulukko[[#This Row],[Todelliset kustannukset]])","v":""},{"$f":"Kuukausimenot_taulukko[[#This Row],[Todelliset kustannukset]]","v":0}]
[null,"Luottokortti 3","Lainat",null,null,{"$f":"IF(OR(Kuukausimenot_taulukko[[#This Row],[Arvioidut kustannukset]]=\"\",Kuukausimenot_taulukko[[#This Row],[Todelliset kustannukset]]=\"\"),\"\",Kuukausimenot_taulukko[[#This Row],[Arvioidut kustannukset]]-Kuukausimenot_taulukko[[#This Row],[Todelliset kustannukset]])","v":""},{"$f":"Kuukausimenot_taulukko[[#This Row],[Todelliset kustannukset]]","v":0}]
[null,"Henkilökohtainen","Lainat",null,null,{"$f":"IF(OR(Kuukausimenot_taulukko[[#This Row],[Arvioidut kustannukset]]=\"\",Kuukausimenot_taulukko[[#This Row],[Todelliset kustannukset]]=\"\"),\"\",Kuukausimenot_taulukko[[#This Row],[Arvioidut kustannukset]]-Kuukausimenot_taulukko[[#This Row],[Todelliset kustannukset]])","v":""},{"$f":"Kuukausimenot_taulukko[[#This Row],[Todelliset kustannukset]]","v":0}]
[null,"Opiskelija","Lainat",null,null,{"$f":"IF(OR(Kuukausimenot_taulukko[[#This Row],[Arvioidut kustannukset]]=\"\",Kuukausimenot_taulukko[[#This Row],[Todelliset kustannukset]]=\"\"),\"\",Kuukausimenot_taulukko[[#This Row],[Arvioidut kustannukset]]-Kuukausimenot_taulukko[[#This Row],[Todelliset kustannukset]])","v":""},{"$f":"Kuukausimenot_taulukko[[#This Row],[Todelliset kustannukset]]","v":0}]
[null,"Vaatteet","Hyvinvointi",{"v":150,"d":"150 €"},{"v":140,"d":"140 €"},{"$f":"IF(OR(Kuukausimenot_taulukko[[#This Row],[Arvioidut kustannukset]]=\"\",Kuukausimenot_taulukko[[#This Row],[Todelliset kustannukset]]=\"\"),\"\",Kuukausimenot_taulukko[[#This Row],[Arvioidut kustannukset]]-Kuukausimenot_taulukko[[#This Row],[Todelliset kustannukset]])","v":{"v":10,"d":"10 €"}},{"$f":"Kuukausimenot_taulukko[[#This Row],[Todelliset kustannukset]]","v":140}]
[null,"Pesula","Hyvinvointi",null,null,{"$f":"IF(OR(Kuukausimenot_taulukko[[#This Row],[Arvioidut kustannukset]]=\"\",Kuukausimenot_taulukko[[#This Row],[Todelliset kustannukset]]=\"\"),\"\",Kuukausimenot_taulukko[[#This Row],[Arvioidut kustannukset]]-Kuukausimenot_taulukko[[#This Row],[Todelliset kustannukset]])","v":""},{"$f":"Kuukausimenot_taulukko[[#This Row],[Todelliset kustannukset]]","v":0}]
[null,"Kampaamo/kynnet","Hyvinvointi",null,null,{"$f":"IF(OR(Kuukausimenot_taulukko[[#This Row],[Arvioidut kustannukset]]=\"\",Kuukausimenot_taulukko[[#This Row],[Todelliset kustannukset]]=\"\"),\"\",Kuukausimenot_taulukko[[#This Row],[Arvioidut kustannukset]]-Kuukausimenot_taulukko[[#This Row],[Todelliset kustannukset]])","v":""},{"$f":"Kuukausimenot_taulukko[[#This Row],[Todelliset kustannukset]]","v":0}]
[null,"Kuntokeskus","Hyvinvointi",null,null,{"$f":"IF(OR(Kuukausimenot_taulukko[[#This Row],[Arvioidut kustannukset]]=\"\",Kuukausimenot_taulukko[[#This Row],[Todelliset kustannukset]]=\"\"),\"\",Kuukausimenot_taulukko[[#This Row],[Arvioidut kustannukset]]-Kuukausimenot_taulukko[[#This Row],[Todelliset kustannukset]])","v":""},{"$f":"Kuukausimenot_taulukko[[#This Row],[Todelliset kustannukset]]","v":0}]
[null,"Terveydenhoito","Hyvinvointi",null,null,{"$f":"IF(OR(Kuukausimenot_taulukko[[#This Row],[Arvioidut kustannukset]]=\"\",Kuukausimenot_taulukko[[#This Row],[Todelliset kustannukset]]=\"\"),\"\",Kuukausimenot_taulukko[[#This Row],[Arvioidut kustannukset]]-Kuukausimenot_taulukko[[#This Row],[Todelliset kustannukset]])","v":""},{"$f":"Kuukausimenot_taulukko[[#This Row],[Todelliset kustannukset]]","v":0}]
[null,"Ruokakulut","Lemmikkieläimet",{"v":150,"d":"150 €"},{"v":75,"d":"75 €"},{"$f":"IF(OR(Kuukausimenot_taulukko[[#This Row],[Arvioidut kustannukset]]=\"\",Kuukausimenot_taulukko[[#This Row],[Todelliset kustannukset]]=\"\"),\"\",Kuukausimenot_taulukko[[#This Row],[Arvioidut kustannukset]]-Kuukausimenot_taulukko[[#This Row],[Todelliset kustannukset]])","v":{"v":75,"d":"75 €"}},{"$f":"Kuukausimenot_taulukko[[#This Row],[Todelliset kustannukset]]","v":75}]
[null,"Trimmaus","Lemmikkieläimet",{"v":20,"d":"20 €"},{"v":25,"d":"25 €"},{"$f":"IF(OR(Kuukausimenot_taulukko[[#This Row],[Arvioidut kustannukset]]=\"\",Kuukausimenot_taulukko[[#This Row],[Todelliset kustannukset]]=\"\"),\"\",Kuukausimenot_taulukko[[#This Row],[Arvioidut kustannukset]]-Kuukausimenot_taulukko[[#This Row],[Todelliset kustannukset]])","v":{"v":-5,"d":"-5 €"}},{"$f":"Kuukausimenot_taulukko[[#This Row],[Todelliset kustannukset]]","v":25}]
[null,"Terveydenhoito","Lemmikkieläimet",null,null,{"$f":"IF(OR(Kuukausimenot_taulukko[[#This Row],[Arvioidut kustannukset]]=\"\",Kuukausimenot_taulukko[[#This Row],[Todelliset kustannukset]]=\"\"),\"\",Kuukausimenot_taulukko[[#This Row],[Arvioidut kustannukset]]-Kuukausimenot_taulukko[[#This Row],[Todelliset kustannukset]])","v":""},{"$f":"Kuukausimenot_taulukko[[#This Row],[Todelliset kustannukset]]","v":0}]
[null,"Lelut","Lemmikkieläimet",null,null,{"$f":"IF(OR(Kuukausimenot_taulukko[[#This Row],[Arvioidut kustannukset]]=\"\",Kuukausimenot_taulukko[[#This Row],[Todelliset kustannukset]]=\"\"),\"\",Kuukausimenot_taulukko[[#This Row],[Arvioidut kustannukset]]-Kuukausimenot_taulukko[[#This Row],[Todelliset kustannukset]])","v":""},{"$f":"Kuukausimenot_taulukko[[#This Row],[Todelliset kustannukset]]","v":0}]
[null,"Sijoitustili","Säästöt",{"v":200,"d":"200 €"},{"v":200,"d":"200 €"},{"$f":"IF(OR(Kuukausimenot_taulukko[[#This Row],[Arvioidut kustannukset]]=\"\",Kuukausimenot_taulukko[[#This Row],[Todelliset kustannukset]]=\"\"),\"\",Kuukausimenot_taulukko[[#This Row],[Arvioidut kustannukset]]-Kuukausimenot_taulukko[[#This Row],[Todelliset kustannukset]])","v":{"v":0,"d":"0 €"}},{"$f":"Kuukausimenot_taulukko[[#This Row],[Todelliset kustannukset]]","v":200}]
[null,"Eläketili","Säästöt",null,null,{"$f":"IF(OR(Kuukausimenot_taulukko[[#This Row],[Arvioidut kustannukset]]=\"\",Kuukausimenot_taulukko[[#This Row],[Todelliset kustannukset]]=\"\"),\"\",Kuukausimenot_taulukko[[#This Row],[Arvioidut kustannukset]]-Kuukausimenot_taulukko[[#This Row],[Todelliset kustannukset]])","v":""},{"$f":"Kuukausimenot_taulukko[[#This Row],[Todelliset kustannukset]]","v":0}]
[null,"Liittovaltio","Verot",{"v":300,"d":"300 €"},{"v":300,"d":"300 €"},{"$f":"IF(OR(Kuukausimenot_taulukko[[#This Row],[Arvioidut kustannukset]]=\"\",Kuukausimenot_taulukko[[#This Row],[Todelliset kustannukset]]=\"\"),\"\",Kuukausimenot_taulukko[[#This Row],[Arvioidut kustannukset]]-Kuukausimenot_taulukko[[#This Row],[Todelliset kustannukset]])","v":{"v":0,"d":"0 €"}},{"$f":"Kuukausimenot_taulukko[[#This Row],[Todelliset kustannukset]]","v":300}]
[null,"Paikallinen","Verot",null,null,{"$f":"IF(OR(Kuukausimenot_taulukko[[#This Row],[Arvioidut kustannukset]]=\"\",Kuukausimenot_taulukko[[#This Row],[Todelliset kustannukset]]=\"\"),\"\",Kuukausimenot_taulukko[[#This Row],[Arvioidut kustannukset]]-Kuukausimenot_taulukko[[#This Row],[Todelliset kustannukset]])","v":""},{"$f":"Kuukausimenot_taulukko[[#This Row],[Todelliset kustannukset]]","v":0}]
[null,"Valtio","Verot",null,null,{"$f":"IF(OR(Kuukausimenot_taulukko[[#This Row],[Arvioidut kustannukset]]=\"\",Kuukausimenot_taulukko[[#This Row],[Todelliset kustannukset]]=\"\"),\"\",Kuukausimenot_taulukko[[#This Row],[Arvioidut kustannukset]]-Kuukausimenot_taulukko[[#This Row],[Todelliset kustannukset]])","v":""},{"$f":"Kuukausimenot_taulukko[[#This Row],[Todelliset kustannukset]]","v":0}]
[null,"Linja-auto-/taksimaksu","Liikenne",{"v":100,"d":"100 €"},{"v":150,"d":"150 €"},{"$f":"IF(OR(Kuukausimenot_taulukko[[#This Row],[Arvioidut kustannukset]]=\"\",Kuukausimenot_taulukko[[#This Row],[Todelliset kustannukset]]=\"\"),\"\",Kuukausimenot_taulukko[[#This Row],[Arvioidut kustannukset]]-Kuukausimenot_taulukko[[#This Row],[Todelliset kustannukset]])","v":{"v":-50,"d":"-50 €"}},{"$f":"Kuukausimenot_taulukko[[#This Row],[Todelliset kustannukset]]","v":150}]
[null,"Polttoaine","Liikenne",{"v":450,"d":"450 €"},{"v":400,"d":"400 €"},{"$f":"IF(OR(Kuukausimenot_taulukko[[#This Row],[Arvioidut kustannukset]]=\"\",Kuukausimenot_taulukko[[#This Row],[Todelliset kustannukset]]=\"\"),\"\",Kuukausimenot_taulukko[[#This Row],[Arvioidut kustannukset]]-Kuukausimenot_taulukko[[#This Row],[Todelliset kustannukset]])","v":{"v":50,"d":"50 €"}},{"$f":"Kuukausimenot_taulukko[[#This Row],[Todelliset kustannukset]]","v":400}]
[null,"Vakuutukset","Liikenne",{"v":300,"d":"300 €"},{"v":300,"d":"300 €"},{"$f":"IF(OR(Kuukausimenot_taulukko[[#This Row],[Arvioidut kustannukset]]=\"\",Kuukausimenot_taulukko[[#This Row],[Todelliset kustannukset]]=\"\"),\"\",Kuukausimenot_taulukko[[#This Row],[Arvioidut kustannukset]]-Kuukausimenot_taulukko[[#This Row],[Todelliset kustannukset]])","v":{"v":0,"d":"0 €"}},{"$f":"Kuukausimenot_taulukko[[#This Row],[Todelliset kustannukset]]","v":300}]
[null,"Käyttöoikeudet ","Liikenne",{"v":25,"d":"25 €"},{"v":25,"d":"25 €"},{"$f":"IF(OR(Kuukausimenot_taulukko[[#This Row],[Arvioidut kustannukset]]=\"\",Kuukausimenot_taulukko[[#This Row],[Todelliset kustannukset]]=\"\"),\"\",Kuukausimenot_taulukko[[#This Row],[Arvioidut kustannukset]]-Kuukausimenot_taulukko[[#This Row],[Todelliset kustannukset]])","v":{"v":0,"d":"0 €"}},{"$f":"Kuukausimenot_taulukko[[#This Row],[Todelliset kustannukset]]","v":25}]
[null,"Ylläpito","Liikenne",{"v":100,"d":"100 €"},{"v":50,"d":"50 €"},{"$f":"IF(OR(Kuukausimenot_taulukko[[#This Row],[Arvioidut kustannukset]]=\"\",Kuukausimenot_taulukko[[#This Row],[Todelliset kustannukset]]=\"\"),\"\",Kuukausimenot_taulukko[[#This Row],[Arvioidut kustannukset]]-Kuukausimenot_taulukko[[#This Row],[Todelliset kustannukset]])","v":{"v":50,"d":"50 €"}},{"$f":"Kuukausimenot_taulukko[[#This Row],[Todelliset kustannukset]]","v":50}]
[null,"Pysäköintimaksut","Liikenne",null,null,{"$f":"IF(OR(Kuukausimenot_taulukko[[#This Row],[Arvioidut kustannukset]]=\"\",Kuukausimenot_taulukko[[#This Row],[Todelliset kustannukset]]=\"\"),\"\",Kuukausimenot_taulukko[[#This Row],[Arvioidut kustannukset]]-Kuukausimenot_taulukko[[#This Row],[Todelliset kustannukset]])","v":""},{"$f":"Kuukausimenot_taulukko[[#This Row],[Todelliset kustannukset]]","v":0}]
[null,"Ajoneuvomaksu","Liikenne",{"v":450,"d":"450 €"},{"v":450,"d":"450 €"},{"$f":"IF(OR(Kuukausimenot_taulukko[[#This Row],[Arvioidut kustannukset]]=\"\",Kuukausimenot_taulukko[[#This Row],[Todelliset kustannukset]]=\"\"),\"\",Kuukausimenot_taulukko[[#This Row],[Arvioidut kustannukset]]-Kuukausimenot_taulukko[[#This Row],[Todelliset kustannukset]])","v":{"v":0,"d":"0 €"}},{"$f":"Kuukausimenot_taulukko[[#This Row],[Todelliset kustannukset]]","v":450}]

{"sheet":"Lisätiedot","index":3,"n_rows":17,"n_cols":6,"rows_kept":17}
[{"$nulls":5}," "]
[null,"Budjettikaavio-Pivot-taulukko",null,null,"Luokkaluettelo"]
[]
[null,"Luokka","Hinta",null,"Voit lisätä luokan kirjoittamalla alle"]
[null,"Lemmikkieläimet",{"v":100,"d":"100 €"},null,"Lapset"]
[null,"Lahjat ja lahjoitukset",{"v":125,"d":"125 €"},null,"Viihde"]
[null,"Lapset",{"v":140,"d":"140 €"},null,"Ruokakulut"]
[null,"Hyvinvointi",{"v":140,"d":"140 €"},null,"Lahjat ja lahjoitukset"]
[null,"Säästöt",{"v":200,"d":"200 €"},null,"Asuminen"]
[null,"Lainat",{"v":200,"d":"200 €"},null,"Vakuutukset"]
[null,"Verot",{"v":300,"d":"300 €"},null,"Lainat"]
[null,"Viihde",{"v":358,"d":"358 €"},null,"Hyvinvointi"]
[null,"Vakuutukset",{"v":900,"d":"900 €"},null,"Lemmikkieläimet"]
[null,"Ruokakulut",{"v":1320,"d":"1,320 €"},null,"Säästöt"]
[null,"Liikenne",{"v":1375,"d":"1,375 €"},null,"Verot"]
[null,"Asuminen",{"v":2702,"d":"2,702 €"},null,"Liikenne"]
[null,"Kaikki yhteensä",{"v":7860,"d":"7,860 €"}]